{"text_format":"1","workbook":"xlsx","n_sheets":7,"sheets":["Original","Gyula","Vasile","Antonia","Dorin","Eva","Tabelle1"],"not_rendered":{"charts":0,"images":0,"macros":1,"external_links":0,"defined_names":6,"comments":0,"pivot_tables":0},"unopened":[],"bounds":{"document_bytes":16777216,"sheet_cells":100000,"rows_first":2000,"rows_last":500,"rows_between":2000,"halvings":0,"cell_chars":16384,"cell_head_chars":4096},"cells_cut":0,"cells_raw":0,"read":"whole","date_system":"1900"}

{"sheet":"Original","index":0,"n_rows":35,"n_cols":19,"rows_kept":35,"cut":false,"hidden":false,"merged":[[0,9,0,10],[0,11,0,12],[34,0,34,1]]}
[null,null,null,null,"Имя",null,null,null,"Перс. Номер"]
[]
[]
["1.",null,null,null,{"$f":"MOD(C4-B4,1)*24-D4","v":0},null,null,null,null,null,null,null,null,1,0,null,1,{"$f":"SUMIF(L4,\"fehlt entsch.\",Q4)","v":0}]
["2.",null,null,null,0,null,null,null,null,null,null,null,null,1,0,null,1,{"$f":"SUMIF(L5,\"fehlt entsch.\",Q5)","v":0}]
["3.",null,null,null,0,null,null,null,null,null,null,null,null,1,0,null,1,0]
["4.",null,null,null,0,null,null,null,null,null,null,null,null,1,0,null,1,0]
["5.",null,null,null,0,null,null,null,null,null,null,null,null,1,0,null,1,0]
["6.",null,null,null,0,null,null,null,null,null,null,null,null,1,0,null,1,0]
["7.",null,null,null,0,null,null,null,null,null,null,null,null,1,0,null,1,0]
["8.",null,null,null,0,null,null,null,null,null,null,null,null,1,0,null,1,0]
["9.",null,null,null,0,null,null,null,null,null,null,null,null,1,0,null,1,0]
["10.",null,null,null,0,null,null,null,null,null,null,null,null,1,0,null,1,0]
["11.",null,null,null,0,null,null,null,null,null,null,null,null,1,0,null,1,0]
["12.",null,null,null,0,null,null,null,null,null,null,null,null,1,0,null,1,0]
["13.",null,null,null,0,null,null,null,null,null,null,null,null,1,0,null,1,0]
["14.",null,null,null,0,null,null,null,null,null,null,null,null,1,0,null,1,0]
["15.",null,null,null,0,null,null,null,null,null,null,null,null,1,0,null,1,0]
["16.",null,null,null,0,null,null,null,null,null,null,null,null,1,0,null,1,0]
["17.",null,null,null,0,null,null,null,null,null,null,null,null,1,0,null,1,0]
["18.",null,null,null,0,null,null,null,null,null,null,null,null,1,0,null,1,0]
["19.",null,null,null,0,null,null,null,null,null,null,null,null,1,0,null,1,0]
["20.",null,null,null,0,null,null,null,null,null,null,null,null,1,0,null,1,0]
["21.",null,null,null,0,null,null,null,null,null,null,null,null,1,0,null,1,0]
["22.",null,null,null,0,null,null,null,null,null,null,null,null,1,0,null,1,0]
["23.",null,null,null,0,null,null,null,null,null,null,null,null,1,0,null,1,0]
["24.",null,null,null,0,null,null,null,null,null,null,null,null,1,0,null,1,0]
["25.",null,null,null,0,null,null,null,null,null,null,null,null,1,0,null,1,0]
["26.",null,null,null,0,null,null,null,null,null,null,null,null,1,0,null,1,0]
["27.",null,null,null,0,null,null,null,null,null,null,null,null,1,0,null,1,0]
["28.",null,null,null,0,null,null,null,null,null,null,null,null,1,0,null,1,0]
["29.",null,null,null,0,null,null,null,null,null,null,null,null,1,0,null,1,0]
["30.",null,null,null,0,null,null,null,null,null,null,null,null,1,0,null,1,0]
[null,null,null,null,0,null,null,null,null,null,null,null,null,1,0,null,1,0]
[null,null,null,null,{"$f":"SUM(E4:E34)","v":0},{"$f":"SUM(F4:F34)","v":0},0,0,0,0,0,0,0,null,null,null,null,{"$f":"SUM(R4:R34)","v":0},{"$f":"SUM(E35,J35:K35,G35)","v":0}]

{"sheet":"Gyula","index":1,"n_rows":35,"n_cols":19,"rows_kept":35,"cut":false,"hidden":false,"merged":[[0,9,0,10],[0,11,0,12],[34,0,34,1]]}
[null,"Berki",null,null,"Имя","Gyula",null,null,"Перс. Номер",1680]
[]
[]
["1.",null,null,null,{"$f":"MOD(C4-B4,1)*24-D4","v":0},null,null,null,null,null,null,null,null,1,0,null,1,{"$f":"SUMIF(L4,\"fehlt entsch.\",Q4)","v":0}]
["2.",null,null,null,0,null,null,null,null,null,null,null,null,1,0,null,1,{"$f":"SUMIF(L5,\"fehlt entsch.\",Q5)","v":0}]
["3.",null,null,null,0,null,null,null,null,null,null,null,null,1,0,null,1,0]
["4.",null,null,null,0,null,null,null,null,null,null,null,null,1,0,null,1,0]
["5.",null,null,null,0,null,null,null,null,null,null,null,null,1,0,null,1,0]
["6.",null,null,null,0,null,null,null,null,null,null,null,null,1,0,null,1,0]
["7.",null,null,null,0,null,null,null,null,null,null,null,null,1,0,null,1,0]
["8.",null,null,null,0,null,null,null,null,null,null,null,null,1,0,null,1,0]
["9.",null,null,null,0,null,null,null,null,null,null,null,null,1,0,null,1,0]
["10.",null,null,null,0,null,null,null,null,null,null,null,null,1,0,null,1,0]
["11.",null,null,null,0,null,null,null,null,null,null,null,null,1,0,null,1,0]
["12.",null,null,null,0,null,null,null,null,null,null,null,null,1,0,null,1,0]
["13.",null,null,null,0,null,null,null,null,null,null,null,null,1,0,null,1,0]
["14.",null,null,null,0,null,null,null,null,null,null,null,null,1,0,null,1,0]
["15.",null,null,null,0,null,null,null,null,null,null,null,null,1,0,null,1,0]
["16.",null,null,null,0,null,null,null,null,null,null,null,null,1,0,null,1,0]
["17.",null,null,null,0,null,null,null,null,null,null,null,null,1,0,null,1,0]
["18.",null,null,null,0,null,null,null,null,null,null,null,null,1,0,null,1,0]
["19.",null,null,null,0,null,null,null,null,null,null,null,null,1,0,null,1,0]
["20.",null,null,null,0,null,null,null,null,null,null,null,null,1,0,null,1,0]
["21.",null,null,null,0,null,null,null,null,null,null,null,null,1,0,null,1,0]
["22.",null,null,null,0,null,null,null,null,null,null,null,null,1,0,null,1,0]
["23.",null,null,null,0,null,null,null,null,null,null,null,null,1,0,null,1,0]
["24.",null,null,null,0,null,null,null,null,null,null,null,null,1,0,null,1,0]
["25.",null,null,null,0,null,null,null,null,null,null,null,null,1,0,null,1,0]
["26.",null,null,null,0,null,null,null,null,null,null,null,null,1,0,null,1,0]
["27.",null,null,null,0,null,null,null,null,null,null,null,null,1,0,null,1,0]
["28.",null,null,null,0,null,null,null,null,null,null,null,null,1,0,null,1,0]
["29.",null,null,null,0,null,null,null,null,null,null,null,null,1,0,null,1,0]
["30.",null,null,null,0,null,null,null,null,null,null,null,null,1,0,null,1,0]
[null,null,null,null,0,null,null,null,null,null,null,null,null,1,0,null,1,0]
[null,null,null,null,{"$f":"SUM(E4:E34)","v":0},{"$f":"SUM(F4:F34)","v":0},0,0,0,0,0,0,0,null,null,null,null,{"$f":"SUM(R4:R34)","v":0},{"$f":"SUM(E35,J35:K35,G35)","v":0}]

{"sheet":"Vasile","index":2,"n_rows":35,"n_cols":19,"rows_kept":35,"cut":false,"hidden":false,"merged":[[0,9,0,10],[0,11,0,12],[34,0,34,1]]}
[null,"Bombar",null,null,"Имя","Vasile",null,null,"Перс. Номер",1413]
[]
[]
["1.",null,null,null,{"$f":"MOD(C4-B4,1)*24-D4","v":0},null,null,null,null,null,null,null,null,1,0,null,1,{"$f":"SUMIF(L4,\"fehlt entsch.\",Q4)","v":0}]
["2.",null,null,null,0,null,null,null,null,null,null,null,null,1,0,null,1,{"$f":"SUMIF(L5,\"fehlt entsch.\",Q5)","v":0}]
["3.",null,null,null,0,null,null,null,null,null,null,null,null,1,0,null,1,0]
["4.",null,null,null,0,null,null,null,null,null,null,null,null,1,0,null,1,0]
["5.",null,null,null,0,null,null,null,null,null,null,null,null,1,0,null,1,0]
["6.",null,null,null,0,null,null,null,null,null,null,null,null,1,0,null,1,0]
["7.",null,null,null,0,null,null,null,null,null,null,null,null,1,0,null,1,0]
["8.",null,null,null,0,null,null,null,null,null,null,null,null,1,0,null,1,0]
["9.",null,null,null,0,null,null,null,null,null,null,null,null,1,0,null,1,0]
["10.",null,null,null,0,null,null,null,null,null,null,null,null,1,0,null,1,0]
["11.",null,null,null,0,null,null,null,null,null,null,null,null,1,0,null,1,0]
["12.",null,null,null,0,null,null,null,null,null,null,null,null,1,0,null,1,0]
["13.",null,null,null,0,null,null,null,null,null,null,null,null,1,0,null,1,0]
["14.",null,null,null,0,null,null,null,null,null,null,null,null,1,0,null,1,0]
["15.",null,null,null,0,null,null,null,null,null,null,null,null,1,0,null,1,0]
["16.",null,null,null,0,null,null,null,null,null,null,null,null,1,0,null,1,0]
["17.",null,null,null,0,null,null,null,null,null,null,null,null,1,0,null,1,0]
["18.",null,null,null,0,null,null,null,null,null,null,null,null,1,0,null,1,0]
["19.",null,null,null,0,null,null,null,null,null,null,null,null,1,0,null,1,0]
["20.",null,null,null,0,null,null,null,null,null,null,null,null,1,0,null,1,0]
["21.",null,null,null,0,null,null,null,null,null,null,null,null,1,0,null,1,0]
["22.",null,null,null,0,null,null,null,null,null,null,null,null,1,0,null,1,0]
["23.",null,null,null,0,null,null,null,null,null,null,null,null,1,0,null,1,0]
["24.",null,null,null,0,null,null,null,null,null,null,null,null,1,0,null,1,0]
["25.",null,null,null,0,null,null,null,null,null,null,null,null,1,0,null,1,0]
["26.",null,null,null,0,null,null,null,null,null,null,null,null,1,0,null,1,0]
["27.",null,null,null,0,null,null,null,null,null,null,null,null,1,0,null,1,0]
["28.",null,null,null,0,null,null,null,null,null,null,null,null,1,0,null,1,0]
["29.",null,null,null,0,null,null,null,null,null,null,null,null,1,0,null,1,0]
["30.",null,null,null,0,null,null,null,null,null,null,null,null,1,0,null,1,0]
[null,null,null,null,0,null,null,null,null,null,null,null,null,1,0,null,1,0]
[null,null,null,null,{"$f":"SUM(E4:E34)","v":0},{"$f":"SUM(F4:F34)","v":0},0,0,0,0,0,0,0,null,null,null,null,{"$f":"SUM(R4:R34)","v":0},{"$f":"SUM(E35,J35:K35,G35)","v":0}]

{"sheet":"Antonia","index":3,"n_rows":35,"n_cols":19,"rows_kept":35,"cut":false,"hidden":false,"merged":[[0,9,0,10],[0,11,0,12],[34,0,34,1]]}
[null,"Csetlar",null,null,"Имя","Antonia",null,null,"Перс. Номер",1678]
[]
[]
["1.",null,null,null,{"$f":"MOD(C4-B4,1)*24-D4","v":0},null,null,null,null,null,null,null,null,1,0,null,1,{"$f":"SUMIF(L4,\"fehlt entsch.\",Q4)","v":0}]
["2.",null,null,null,0,null,null,null,null,null,null,null,null,1,0,null,1,{"$f":"SUMIF(L5,\"fehlt entsch.\",Q5)","v":0}]
["3.",null,null,null,0,null,null,null,null,null,null,null,null,1,0,null,1,0]
["4.",null,null,null,0,null,null,null,null,null,null,null,null,1,0,null,1,0]
["5.",null,null,null,0,null,null,null,null,null,null,null,null,1,0,null,1,0]
["6.",null,null,null,0,null,null,null,null,null,null,null,null,1,0,null,1,0]
["7.",null,null,null,0,null,null,null,null,null,null,null,null,1,0,null,1,0]
["8.",null,null,null,0,null,null,null,null,null,null,null,null,1,0,null,1,0]
["9.",null,null,null,0,null,null,null,null,null,null,null,null,1,0,null,1,0]
["10.",null,null,null,0,null,null,null,null,null,null,null,null,1,0,null,1,0]
["11.",null,null,null,0,null,null,null,null,null,null,null,null,1,0,null,1,0]
["12.",null,null,null,0,null,null,null,null,null,null,null,null,1,0,null,1,0]
["13.",null,null,null,0,null,null,null,null,null,null,null,null,1,0,null,1,0]
["14.",null,null,null,0,null,null,null,null,null,null,null,null,1,0,null,1,0]
["15.",null,null,null,0,null,null,null,null,null,null,null,null,1,0,null,1,0]
["16.",null,null,null,0,null,null,null,null,null,null,null,null,1,0,null,1,0]
["17.",null,null,null,0,null,null,null,null,null,null,null,null,1,0,null,1,0]
["18.",null,null,null,0,null,null,null,null,null,null,null,null,1,0,null,1,0]
["19.",null,null,null,0,null,null,null,null,null,null,null,null,1,0,null,1,0]
["20.",null,null,null,0,null,null,null,null,null,null,null,null,1,0,null,1,0]
["21.",null,null,null,0,null,null,null,null,null,null,null,null,1,0,null,1,0]
["22.",null,null,null,0,null,null,null,null,null,null,null,null,1,0,null,1,0]
["23.",null,null,null,0,null,null,null,null,null,null,null,null,1,0,null,1,0]
["24.",null,null,null,0,null,null,null,null,null,null,null,null,1,0,null,1,0]
["25.",null,null,null,0,null,null,null,null,null,null,null,null,1,0,null,1,0]
["26.",null,null,null,0,null,null,null,null,null,null,null,null,1,0,null,1,0]
["27.",null,null,null,0,null,null,null,null,null,null,null,null,1,0,null,1,0]
["28.",null,null,null,0,null,null,null,null,null,null,null,null,1,0,null,1,0]
["29.",null,null,null,0,null,null,null,null,null,null,null,null,1,0,null,1,0]
["30.",null,null,null,0,null,null,null,null,null,null,null,null,1,0,null,1,0]
[null,null,null,null,0,null,null,null,null,null,null,null,null,1,0,null,1,0]
[null,null,null,null,{"$f":"SUM(E4:E34)","v":0},{"$f":"SUM(F4:F34)","v":0},0,0,0,0,0,0,0,null,null,null,null,{"$f":"SUM(R4:R34)","v":0},{"$f":"SUM(E35,J35:K35,G35)","v":0}]

{"sheet":"Dorin","index":4,"n_rows":35,"n_cols":19,"rows_kept":35,"cut":false,"hidden":false,"merged":[[0,9,0,10],[0,11,0,12],[34,0,34,1]]}
[null,"Fekete",null,null,"Имя","Dorin",null,null,"Перс. Номер",1732]
[]
[]
["1.",null,null,null,{"$f":"MOD(C4-B4,1)*24-D4","v":0},null,null,null,null,null,null,null,null,1,0,null,1,{"$f":"SUMIF(L4,\"fehlt entsch.\",Q4)","v":0}]
["2.",null,null,null,0,null,null,null,null,null,null,null,null,1,0,null,1,{"$f":"SUMIF(L5,\"fehlt entsch.\",Q5)","v":0}]
["3.",null,null,null,0,null,null,null,null,null,null,null,null,1,0,null,1,0]
["4.",null,null,null,0,null,null,null,null,null,null,null,null,1,0,null,1,0]
["5.",null,null,null,0,null,null,null,null,null,null,null,null,1,0,null,1,0]
["6.",null,null,null,0,null,null,null,null,null,null,null,null,1,0,null,1,0]
["7.",null,null,null,0,null,null,null,null,null,null,null,null,1,0,null,1,0]
["8.",null,null,null,0,null,null,null,null,null,null,null,null,1,0,null,1,0]
["9.",null,null,null,0,null,null,null,null,null,null,null,null,1,0,null,1,0]
["10.",null,null,null,0,null,null,null,null,null,null,null,null,1,0,null,1,0]
["11.",null,null,null,0,null,null,null,null,null,null,null,null,1,0,null,1,0]
["12.",null,null,null,0,null,null,null,null,null,null,null,null,1,0,null,1,0]
["13.",null,null,null,0,null,null,null,null,null,null,null,null,1,0,null,1,0]
["14.",null,null,null,0,null,null,null,null,null,null,null,null,1,0,null,1,0]
["15.",null,null,null,0,null,null,null,null,null,null,null,null,1,0,null,1,0]
["16.",null,null,null,0,null,null,null,null,null,null,null,null,1,0,null,1,0]
["17.",null,null,null,0,null,null,null,null,null,null,null,null,1,0,null,1,0]
["18.",null,null,null,0,null,null,null,null,null,null,null,null,1,0,null,1,0]
["19.",null,null,null,0,null,null,null,null,null,null,null,null,1,0,null,1,0]
["20.",null,null,null,0,null,null,null,null,null,null,null,null,1,0,null,1,0]
["21.",null,null,null,0,null,null,null,null,null,null,null,null,1,0,null,1,0]
["22.",null,null,null,0,null,null,null,null,null,null,null,null,1,0,null,1,0]
["23.",null,null,null,0,null,null,null,null,null,null,null,null,1,0,null,1,0]
["24.",null,null,null,0,null,null,null,null,null,null,null,null,1,0,null,1,0]
["25.",null,null,null,0,null,null,null,null,null,null,null,null,1,0,null,1,0]
["26.",null,null,null,0,null,null,null,null,null,null,null,null,1,0,null,1,0]
["27.",null,null,null,0,null,null,null,null,null,null,null,null,1,0,null,1,0]
["28.",null,null,null,0,null,null,null,null,null,null,null,null,1,0,null,1,0]
["29.",null,null,null,0,null,null,null,null,null,null,null,null,1,0,null,1,0]
["30.",null,null,null,0,null,null,null,null,null,null,null,null,1,0,null,1,0]
[null,null,null,null,0,null,null,null,null,null,null,null,null,1,0,null,1,0]
[null,null,null,null,{"$f":"SUM(E4:E34)","v":0},{"$f":"SUM(F4:F34)","v":0},0,0,0,0,0,0,0,null,null,null,null,{"$f":"SUM(R4:R34)","v":0},{"$f":"SUM(E35,J35:K35,G35)","v":0}]

{"sheet":"Eva","index":5,"n_rows":35,"n_cols":19,"rows_kept":35,"cut":false,"hidden":false,"merged":[[0,9,0,10],[0,11,0,12],[34,0,34,1]]}
[null,"Jonas",null,null,"Имя","Eva",null,null,"Перс. Номер",1681]
[]
[]
["1.",null,null,null,{"$f":"MOD(C4-B4,1)*24-D4","v":0},null,null,null,null,null,null,null,null,1,0,null,1,{"$f":"SUMIF(L4,\"fehlt entsch.\",Q4)","v":0}]
["2.",null,null,null,0,null,null,null,null,null,null,null,null,1,0,null,1,{"$f":"SUMIF(L5,\"fehlt entsch.\",Q5)","v":0}]
["3.",null,null,null,0,null,null,null,null,null,null,null,null,1,0,null,1,0]
["4.",null,null,null,0,null,null,null,null,null,null,null,null,1,0,null,1,0]
["5.",null,null,null,0,null,null,null,null,null,null,null,null,1,0,null,1,0]
["6.",null,null,null,0,null,null,null,null,null,null,null,null,1,0,null,1,0]
["7.",null,null,null,0,null,null,null,null,null,null,null,null,1,0,null,1,0]
["8.",null,null,null,0,null,null,null,null,null,null,null,null,1,0,null,1,0]
["9.",null,null,null,0,null,null,null,null,null,null,null,null,1,0,null,1,0]
["10.",null,null,null,0,null,null,null,null,null,null,null,null,1,0,null,1,0]
["11.",null,null,null,0,null,null,null,null,null,null,null,null,1,0,null,1,0]
["12.",null,null,null,0,null,null,null,null,null,null,null,null,1,0,null,1,0]
["13.",null,null,null,0,null,null,null,null,null,null,null,null,1,0,null,1,0]
["14.",null,null,null,0,null,null,null,null,null,null,null,null,1,0,null,1,0]
["15.",null,null,null,0,null,null,null,null,null,null,null,null,1,0,null,1,0]
["16.",null,null,null,0,null,null,null,null,null,null,null,null,1,0,null,1,0]
["17.",null,null,null,0,null,null,null,null,null,null,null,null,1,0,null,1,0]
["18.",null,null,null,0,null,null,null,null,null,null,null,null,1,0,null,1,0]
["19.",null,null,null,0,null,null,null,null,null,null,null,null,1,0,null,1,0]
["20.",null,null,null,0,null,null,null,null,null,null,null,null,1,0,null,1,0]
["21.",null,null,null,0,null,null,null,null,null,null,null,null,1,0,null,1,0]
["22.",null,null,null,0,null,null,null,null,null,null,null,null,1,0,null,1,0]
["23.",null,null,null,0,null,null,null,null,null,null,null,null,1,0,null,1,0]
["24.",null,null,null,0,null,null,null,null,null,null,null,null,1,0,null,1,0]
["25.",null,null,null,0,null,null,null,null,null,null,null,null,1,0,null,1,0]
["26.",null,null,null,0,null,null,null,null,null,null,null,null,1,0,null,1,0]
["27.",null,null,null,0,null,null,null,null,null,null,null,null,1,0,null,1,0]
["28.",null,null,null,0,null,null,null,null,null,null,null,null,1,0,null,1,0]
["29.",null,null,null,0,null,null,null,null,null,null,null,null,1,0,null,1,0]
["30.",null,null,null,0,null,null,null,null,null,null,null,null,1,0,null,1,0]
[null,null,null,null,0,null,null,null,null,null,null,null,null,1,0,null,1,0]
[null,null,null,null,{"$f":"SUM(E4:E34)","v":0},{"$f":"SUM(F4:F34)","v":0},0,0,0,0,0,0,0,null,null,null,null,{"$f":"SUM(R4:R34)","v":0},{"$f":"SUM(E35,J35:K35,G35)","v":0}]

{"sheet":"Tabelle1","index":6,"n_rows":33,"n_cols":4,"rows_kept":33,"cut":false,"hidden":false,"merged":[]}
["Original","Перс.номер","Дата","Сумма"]
["Gyula",null,"1.",{"$f":"SUMPRODUCT(IFERROR(SUMIFS(INDIRECT(\"'\"&$A$2:$A$1000&\"'!E1:E50\"),INDIRECT(\"'\"&$A$2:$A$1000&\"'!A1:A50\"),$C2),))","v":0}]
["Vasile",null,"2.",{"$f":"SUMPRODUCT(IFERROR(SUMIFS(INDIRECT(\"'\"&$A$2:$A$1000&\"'!E1:E50\"),INDIRECT(\"'\"&$A$2:$A$1000&\"'!A1:A50\"),$C3),))","v":0}]
["Antonia",null,"3.",{"$f":"SUMPRODUCT(IFERROR(SUMIFS(INDIRECT(\"'\"&$A$2:$A$1000&\"'!E1:E50\"),INDIRECT(\"'\"&$A$2:$A$1000&\"'!A1:A50\"),$C4),))","v":0}]
["Dorin",null,"4.",{"$f":"SUMPRODUCT(IFERROR(SUMIFS(INDIRECT(\"'\"&$A$2:$A$1000&\"'!E1:E50\"),INDIRECT(\"'\"&$A$2:$A$1000&\"'!A1:A50\"),$C5),))","v":0}]
["Eva",null,"5.",{"$f":"SUMPRODUCT(IFERROR(SUMIFS(INDIRECT(\"'\"&$A$2:$A$1000&\"'!E1:E50\"),INDIRECT(\"'\"&$A$2:$A$1000&\"'!A1:A50\"),$C6),))","v":0}]
["Tabelle1",null,"6.",{"$f":"SUMPRODUCT(IFERROR(SUMIFS(INDIRECT(\"'\"&$A$2:$A$1000&\"'!E1:E50\"),INDIRECT(\"'\"&$A$2:$A$1000&\"'!A1:A50\"),$C7),))","v":0}]
[null,null,"7.",{"$f":"SUMPRODUCT(IFERROR(SUMIFS(INDIRECT(\"'\"&$A$2:$A$1000&\"'!E1:E50\"),INDIRECT(\"'\"&$A$2:$A$1000&\"'!A1:A50\"),$C8),))","v":0}]
[null,null,"8.",{"$f":"SUMPRODUCT(IFERROR(SUMIFS(INDIRECT(\"'\"&$A$2:$A$1000&\"'!E1:E50\"),INDIRECT(\"'\"&$A$2:$A$1000&\"'!A1:A50\"),$C9),))","v":0}]
[null,null,"9.",{"$f":"SUMPRODUCT(IFERROR(SUMIFS(INDIRECT(\"'\"&$A$2:$A$1000&\"'!E1:E50\"),INDIRECT(\"'\"&$A$2:$A$1000&\"'!A1:A50\"),$C10),))","v":0}]
[null,null,"10.",{"$f":"SUMPRODUCT(IFERROR(SUMIFS(INDIRECT(\"'\"&$A$2:$A$1000&\"'!E1:E50\"),INDIRECT(\"'\"&$A$2:$A$1000&\"'!A1:A50\"),$C11),))","v":0}]
[null,null,"11.",{"$f":"SUMPRODUCT(IFERROR(SUMIFS(INDIRECT(\"'\"&$A$2:$A$1000&\"'!E1:E50\"),INDIRECT(\"'\"&$A$2:$A$1000&\"'!A1:A50\"),$C12),))","v":0}]
[null,null,"12.",{"$f":"SUMPRODUCT(IFERROR(SUMIFS(INDIRECT(\"'\"&$A$2:$A$1000&\"'!E1:E50\"),INDIRECT(\"'\"&$A$2:$A$1000&\"'!A1:A50\"),$C13),))","v":0}]
[null,null,"13.",{"$f":"SUMPRODUCT(IFERROR(SUMIFS(INDIRECT(\"'\"&$A$2:$A$1000&\"'!E1:E50\"),INDIRECT(\"'\"&$A$2:$A$1000&\"'!A1:A50\"),$C14),))","v":0}]
[null,null,"14.",{"$f":"SUMPRODUCT(IFERROR(SUMIFS(INDIRECT(\"'\"&$A$2:$A$1000&\"'!E1:E50\"),INDIRECT(\"'\"&$A$2:$A$1000&\"'!A1:A50\"),$C15),))","v":0}]
[null,null,"15.",{"$f":"SUMPRODUCT(IFERROR(SUMIFS(INDIRECT(\"'\"&$A$2:$A$1000&\"'!E1:E50\"),INDIRECT(\"'\"&$A$2:$A$1000&\"'!A1:A50\"),$C16),))","v":0}]
[null,null,"16.",{"$f":"SUMPRODUCT(IFERROR(SUMIFS(INDIRECT(\"'\"&$A$2:$A$1000&\"'!E1:E50\"),INDIRECT(\"'\"&$A$2:$A$1000&\"'!A1:A50\"),$C17),))","v":0}]
[null,null,"17.",{"$f":"SUMPRODUCT(IFERROR(SUMIFS(INDIRECT(\"'\"&$A$2:$A$1000&\"'!E1:E50\"),INDIRECT(\"'\"&$A$2:$A$1000&\"'!A1:A50\"),$C18),))","v":0}]
[null,null,"18.",{"$f":"SUMPRODUCT(IFERROR(SUMIFS(INDIRECT(\"'\"&$A$2:$A$1000&\"'!E1:E50\"),INDIRECT(\"'\"&$A$2:$A$1000&\"'!A1:A50\"),$C19),))","v":0}]
[null,null,"19.",{"$f":"SUMPRODUCT(IFERROR(SUMIFS(INDIRECT(\"'\"&$A$2:$A$1000&\"'!E1:E50\"),INDIRECT(\"'\"&$A$2:$A$1000&\"'!A1:A50\"),$C20),))","v":0}]
[null,null,"20.",{"$f":"SUMPRODUCT(IFERROR(SUMIFS(INDIRECT(\"'\"&$A$2:$A$1000&\"'!E1:E50\"),INDIRECT(\"'\"&$A$2:$A$1000&\"'!A1:A50\"),$C21),))","v":0}]
[null,null,"21.",{"$f":"SUMPRODUCT(IFERROR(SUMIFS(INDIRECT(\"'\"&$A$2:$A$1000&\"'!E1:E50\"),INDIRECT(\"'\"&$A$2:$A$1000&\"'!A1:A50\"),$C22),))","v":0}]
[null,null,"22.",{"$f":"SUMPRODUCT(IFERROR(SUMIFS(INDIRECT(\"'\"&$A$2:$A$1000&\"'!E1:E50\"),INDIRECT(\"'\"&$A$2:$A$1000&\"'!A1:A50\"),$C23),))","v":0}]
[null,null,"23.",{"$f":"SUMPRODUCT(IFERROR(SUMIFS(INDIRECT(\"'\"&$A$2:$A$1000&\"'!E1:E50\"),INDIRECT(\"'\"&$A$2:$A$1000&\"'!A1:A50\"),$C24),))","v":0}]
[null,null,"24.",{"$f":"SUMPRODUCT(IFERROR(SUMIFS(INDIRECT(\"'\"&$A$2:$A$1000&\"'!E1:E50\"),INDIRECT(\"'\"&$A$2:$A$1000&\"'!A1:A50\"),$C25),))","v":0}]
[null,null,"25.",{"$f":"SUMPRODUCT(IFERROR(SUMIFS(INDIRECT(\"'\"&$A$2:$A$1000&\"'!E1:E50\"),INDIRECT(\"'\"&$A$2:$A$1000&\"'!A1:A50\"),$C26),))","v":0}]
[null,null,"26.",{"$f":"SUMPRODUCT(IFERROR(SUMIFS(INDIRECT(\"'\"&$A$2:$A$1000&\"'!E1:E50\"),INDIRECT(\"'\"&$A$2:$A$1000&\"'!A1:A50\"),$C27),))","v":0}]
[null,null,"27.",{"$f":"SUMPRODUCT(IFERROR(SUMIFS(INDIRECT(\"'\"&$A$2:$A$1000&\"'!E1:E50\"),INDIRECT(\"'\"&$A$2:$A$1000&\"'!A1:A50\"),$C28),))","v":0}]
[null,null,"28.",{"$f":"SUMPRODUCT(IFERROR(SUMIFS(INDIRECT(\"'\"&$A$2:$A$1000&\"'!E1:E50\"),INDIRECT(\"'\"&$A$2:$A$1000&\"'!A1:A50\"),$C29),))","v":0}]
[null,null,"29.",{"$f":"SUMPRODUCT(IFERROR(SUMIFS(INDIRECT(\"'\"&$A$2:$A$1000&\"'!E1:E50\"),INDIRECT(\"'\"&$A$2:$A$1000&\"'!A1:A50\"),$C30),))","v":0}]
[null,null,"30.",{"$f":"SUMPRODUCT(IFERROR(SUMIFS(INDIRECT(\"'\"&$A$2:$A$1000&\"'!E1:E50\"),INDIRECT(\"'\"&$A$2:$A$1000&\"'!A1:A50\"),$C31),))","v":0}]
[null,null,"31.",{"$f":"SUMPRODUCT(IFERROR(SUMIFS(INDIRECT(\"'\"&$A$2:$A$1000&\"'!E1:E50\"),INDIRECT(\"'\"&$A$2:$A$1000&\"'!A1:A50\"),$C32),))","v":0}]
[null,null,null,{"$f":"SUM(D2:D32)","v":0}]